[Event "Austrian Youth-ch U18 Boys 2024"]
[Site "Leibnitz"]
[Date "2024.03.25"]
[Round "3.1"]
[White "Marakovits, Nico"]
[Black "Gschiel, Alexander"]
[Result "0-1"]
[ECO "A18"]
[WhiteElo "2234"]
[BlackElo "2336"]
[Annotator "RC"]
[PlyCount "84"]
[EventDate "2024.03.23"]
[EventType "swiss"]
[EventCountry "AUT"]
[SourceTitle "playchess.com"]
[Source "ChessBase"]
[SourceQuality "1"]
[TimeControl "5400+30"]

1. c4 {[%emt 0:00:02]} e6 {[%emt 0:00:08]} 2. Nc3 {[%emt 0:00:07]} Nf6 {[%emt 0:00:37]} 3. e4 {[%emt 0:00:04]} Nc6 {[%emt 0:00:23]} 4. Nf3 {[%emt 0:07:09]} d5 {[%emt 0:01:43]} 5. cxd5 {[%emt 0:03:32]} exd5 {[%emt 0:00:22]} 6. e5 {[%emt 0:03:47]} Ne4 {[%emt 0:01:13]} 7. d3 {[%emt 0:02:07]} Nxc3 {[%emt 0:07:11]} 8. bxc3 {[%emt 0:00:05]} d4 {[%emt 0:00:12]} 9. cxd4 {[%emt 0:11:27]} Nxd4 {[%emt 0:07:36]} 10. Qa4+ {[%emt 0:00:18]} Nc6 {[%emt 0:00:07]} 11. Bd2 {[%emt 0:07:17]} Bc5 {[%emt 0:08:40]} 12. Rc1 {[%emt 0:06:33]} Bb6 {[%emt 0:02:28]} 13. Be2 {[%emt 0:03:18]} O-O {[%emt 0:02:06]} 14. Bc3 {[%emt 0:06:24]} Be6 {[%emt 0:08:32]} 15. O-O {[%emt 0:02:57]} Qd7 {[%emt 0:01:01]} 16. Qh4 {[%emt 0:05:26]} Bxa2 {[%emt 0:05:45]} 17. Ng5 {[%emt 0:03:56]} h6 {[%emt 0:01:41]} 18. Ne4 {[%emt 0:00:24]} Nd4 {[%emt 0:09:28]} 19. Bg4 {[%emt 0:03:38]} Be6 {[%emt 0:05:17]} 20. Bxd4 {[%emt 0:16:21]} Bxd4 {[%emt 0:04:06]} 21. Bxe6 {[%emt 0:00:40]} Qxe6 {[%emt 0:00:49]} 22. Rxc7 {[%emt 0:00:12]} Qxe5 {[%emt 0:00:50]} 23. Rxb7 {[%emt 0:00:15]} a5 {[%emt 0:00:22]} 24. Nd2 {[%emt 0:03:58]} Qd5 {[%emt 0:02:09]} 25. Qe7 {[%emt 0:05:44]} Bf6 {[%emt 0:08:38]} 26. Qe4 {[%emt 0:02:23]} Qxe4 {[%emt 0:01:05]} 27. Nxe4 {[%emt 0:00:15]} Bd4 {[%emt 0:00:06]} 28. Rb3 {[%emt 0:00:34]} Rfb8 {[%emt 0:01:35]} 29. Rfb1 {[%emt 0:01:09]} Rc8 {[%emt 0:01:54]} 30. g4 {[%emt 0:00:37]} g6 {[%emt 0:01:48]} 31. Ra3 {[%emt 0:00:34]} f5 {[%emt 0:02:01]} 32. gxf5 {[%emt 0:00:10]} gxf5 {[%emt 0:00:02]} 33. Nd6 {[%emt 0:03:35]} Bc5 {[%emt 0:02:17]} 34. Nxc8 {[%emt 0:01:20]} Bxa3 {[%emt 0:00:05]} 35. Rb3 {[%emt 0:01:09]} Bf8 {[%emt 0:00:35]} 36. Rc3 {[%emt 0:00:24]} a4 {[%emt 0:00:54]} 37. Nb6 {[%emt 0:00:05]} Ra6 {[%emt 0:00:08]} 38. Nc4 {[%emt 0:00:51]} a3 {[%emt 0:00:09]} 39. Ne3 {[%emt 0:00:36]} a2 {[%emt 0:00:57]} 40. Nc2 {[%emt 0:00:03]} Rb6 {[%emt 0:01:03]} 41. Rc8 {[%emt 0:00:31]} Rb2 {[%emt 0:00:07]} 42. Kg2 {[%emt 0:00:14]} Rxc2 {[%emt 0:00:09]} 0-1

[Event "Austrian Youth-ch U18 Boys 2024"]
[Site "Leibnitz"]
[Date "2024.03.25"]
[Round "3.2"]
[White "Balint, Peter"]
[Black "Wendl, Philipp"]
[Result "1-0"]
[ECO "C12"]
[WhiteElo "2345"]
[BlackElo "2237"]
[Annotator "RC"]
[PlyCount "67"]
[EventDate "2024.03.23"]
[EventType "swiss"]
[EventCountry "AUT"]
[SourceTitle "playchess.com"]
[Source "ChessBase"]
[SourceQuality "1"]
[TimeControl "5400+30"]

1. e4 {[%emt 0:00:03]} e6 {[%emt 0:00:10]} 2. d4 {[%emt 0:00:16]} d5 {[%emt 0:00:04]} 3. Nc3 {[%emt 0:00:05]} Nf6 {[%emt 0:00:06]} 4. Bg5 {[%emt 0:01:46]} h6 {[%emt 0:01:23]} 5. Bxf6 {[%emt 0:00:07]} Qxf6 {[%emt 0:00:04]} 6. a3 {[%emt 0:00:03]} c6 {[%emt 0:01:16]} 7. Nf3 {[%emt 0:00:51]} Qd8 {[%emt 0:05:00]} 8. Bd3 {[%emt 0:00:30]} Be7 {[%emt 0:01:15]} 9. Qe2 {[%emt 0:00:34]} Nd7 {[%emt 0:01:35]} 10. h4 {[%emt 0:05:42]} b6 {[%emt 0:10:07]} 11. O-O-O {[%emt 0:02:24]} Bb7 {[%emt 0:01:39]} 12. Kb1 {[%emt 0:06:16]} Qc7 {[%emt 0:04:32]} 13. Rh3 {[%emt 0:07:11]} dxe4 {[%emt 0:05:19]} 14. Nxe4 {[%emt 0:00:28]} Nf6 {[%emt 0:00:47]} 15. Ne5 {[%emt 0:02:18]} Rd8 {[%emt 0:06:49]} 16. c3 {[%emt 0:17:23]} c5 {[%emt 0:16:55]} 17. f4 {[%emt 0:12:07]} cxd4 {[%emt 0:03:56]} 18. cxd4 {[%emt 0:01:49]} Nxe4 {[%emt 0:12:00]} 19. Bxe4 {[%emt 0:00:05]} Bxe4+ {[%emt 0:00:04]} 20. Qxe4 {[%emt 0:00:04]} Bf6 {[%emt 0:00:25]} 21. Ng4 {[%emt 0:11:28]} Qd6 {[%emt 0:04:39]} 22. d5 {[%emt 0:03:16]} Be7 {[%emt 0:01:51]} 23. Rhd3 {[%emt 0:06:20]} O-O {[%emt 0:03:12]} 24. Ne3 {[%emt 0:00:28]} Bf6 {[%emt 0:01:35]} 25. g4 {[%emt 0:01:02]} Rfe8 {[%emt 0:08:03]} 26. g5 {[%emt 0:01:18]} exd5 {[%emt 0:00:13]} 27. Qf5 {[%emt 0:00:39]} Bxb2 {[%emt 0:04:51]} 28. Kxb2 {[%emt 0:10:00]} Qc5 {[%emt 0:00:46]} 29. Nxd5 {[%emt 0:02:45]} Re2+ {[%emt 0:01:24]} 30. R1d2 {[%emt 0:01:07]} Qb5+ {[%emt 0:00:45]} 31. Ka1 {[%emt 0:00:45]} Re1+ {[%emt 0:02:39]} 32. Rd1 {[%emt 0:00:05]} Rxd1+ {[%emt 0:00:59]} 33. Rxd1 {[%emt 0:00:04]} Kh8 {[%emt 0:01:10]} 34. gxh6 {[%emt 0:00:09]} 1-0

[Event "Austrian Youth-ch U18 Boys 2024"]
[Site "Leibnitz"]
[Date "2024.03.25"]
[Round "3.3"]
[White "Hofstadler, Mario"]
[Black "Borrmann, Laurenz"]
[Result "0-1"]
[ECO "E05"]
[WhiteElo "2104"]
[BlackElo "2311"]
[Annotator "RC"]
[PlyCount "58"]
[EventDate "2024.03.23"]
[EventType "swiss"]
[EventCountry "AUT"]
[SourceTitle "playchess.com"]
[Source "ChessBase"]
[SourceQuality "1"]
[TimeControl "5400+30"]

1. d4 {[%emt 0:00:29]} e6 {[%emt 0:00:46]} 2. Nf3 {[%emt 0:01:30]} Nf6 {[%emt 0:00:44]} 3. c4 {[%emt 0:00:09]} d5 {[%emt 0:00:09]} 4. g3 {[%emt 0:00:06]} Be7 {[%emt 0:00:07]} 5. Bg2 {[%emt 0:00:06]} O-O {[%emt 0:00:09]} 6. O-O {[%emt 0:00:11]} dxc4 {[%emt 0:00:06]} 7. Qc2 {[%emt 0:00:32]} b5 {[%emt 0:00:12]} 8. a4 {[%emt 0:06:50]} b4 {[%emt 0:00:07]} 9. Nfd2 {[%emt 0:06:07]} Nd5 {[%emt 0:00:16]} 10. Nxc4 {[%emt 0:01:55]} c5 {[%emt 0:00:09]} 11. dxc5 {[%emt 0:16:15]} Ba6 {[%emt 0:00:11]} 12. Ne3 {[%emt 0:08:46]} Nd7 {[%emt 0:09:17]} 13. Nxd5 {[%emt 0:04:33]} exd5 {[%emt 0:00:10]} 14. Rd1 {[%emt 0:08:12]} Rc8 {[%emt 0:08:54]} 15. c6 {[%emt 0:05:08]} Ne5 {[%emt 0:00:21]} 16. Bxd5 {[%emt 0:07:10]} Nxc6 {[%emt 0:00:08]} 17. Bxf7+ {[%emt 0:03:09]} Rxf7 {[%emt 0:00:24]} 18. Rxd8+ {[%emt 0:00:08]} Bxd8 {[%emt 0:00:05]} 19. Be3 {[%emt 0:02:37]} Nd4 {[%emt 0:04:59]} 20. Qxc8 {[%emt 0:05:38]} Nxe2+ {[%emt 0:00:13]} 21. Kf1 {[%emt 0:00:02]} Nxg3+ {[%emt 0:00:58]} 22. Kg2 {[%emt 0:00:34]} Bxc8 {[%emt 0:00:06]} 23. hxg3 {[%emt 0:00:12]} Bf6 {[%emt 0:04:19]} 24. Nd2 {[%emt 0:00:06]} Bxb2 {[%emt 0:01:02]} 25. Rd1 {[%emt 0:00:41]} Rd7 {[%emt 0:06:29]} 26. Rb1 {[%emt 0:00:11]} Bb7+ {[%emt 0:10:14]} 27. f3 {[%emt 0:00:18]} Be5 {[%emt 0:11:48]} 28. Nc4 {[%emt 0:00:21]} Bc3 {[%emt 0:00:42]} 29. Bxa7 {[%emt 0:00:20]} Ba6 {[%emt 0:00:27]} 0-1

[Event "Austrian Youth-ch U18 Boys 2024"]
[Site "Leibnitz"]
[Date "2024.03.25"]
[Round "3.4"]
[White "Lerch, Johannes"]
[Black "Zaytsev, Alexander"]
[Result "1/2-1/2"]
[ECO "A11"]
[WhiteElo "2258"]
[BlackElo "2018"]
[Annotator "RC"]
[PlyCount "57"]
[EventDate "2024.03.23"]
[EventType "swiss"]
[EventCountry "AUT"]
[SourceTitle "playchess.com"]
[Source "ChessBase"]
[SourceQuality "1"]
[TimeControl "5400+30"]

1. Nf3 {[%emt 0:00:03]} d5 {[%emt 0:00:15]} 2. g3 {[%emt 0:00:07]} Nf6 {[%emt 0:00:08]} 3. Bg2 {[%emt 0:00:06]} c6 {[%emt 0:01:36]} 4. O-O {[%emt 0:00:10]} Bf5 {[%emt 0:02:26]} 5. c4 {[%emt 0:00:18]} e6 {[%emt 0:00:52]} 6. Qb3 {[%emt 0:00:18]} Qb6 {[%emt 0:04:38]} 7. d3 {[%emt 0:00:44]} Nbd7 {[%emt 0:01:57]} 8. Qc2 {[%emt 0:05:44]} h6 {[%emt 0:02:53]} 9. cxd5 {[%emt 0:01:07]} cxd5 {[%emt 0:03:34]} 10. Be3 {[%emt 0:02:57]} Bc5 {[%emt 0:03:08]} 11. Bxc5 {[%emt 0:01:24]} Nxc5 {[%emt 0:05:32]} 12. Nc3 {[%emt 0:13:51]} O-O {[%emt 0:03:10]} 13. b4 {[%emt 0:02:41]} Ncd7 {[%emt 0:04:36]} 14. a3 {[%emt 0:05:16]} Rac8 {[%emt 0:04:45]} 15. Qb3 {[%emt 0:02:05]} Bg6 {[%emt 0:06:13]} 16. Na4 {[%emt 0:01:25]} Qd6 {[%emt 0:02:15]} 17. Rfc1 {[%emt 0:05:00]} Rc7 {[%emt 0:06:30]} 18. Rc3 {[%emt 0:09:58]} Rfc8 {[%emt 0:01:07]} 19. Rac1 {[%emt 0:00:41]} b5 {[%emt 0:08:02]} 20. Nb2 {[%emt 0:00:11]} e5 {[%emt 0:01:30]} 21. Ne1 {[%emt 0:13:52]} Bh5 {[%emt 0:07:28]} 22. Kf1 {[%emt 0:01:32]} e4 {[%emt 0:04:24]} 23. d4 {[%emt 0:14:26]} Nb6 {[%emt 0:03:21]} 24. Rxc7 {[%emt 0:01:46]} Rxc7 {[%emt 0:00:05]} 25. Rxc7 {[%emt 0:03:55]} Qxc7 {[%emt 0:00:01]} 26. Qc2 {[%emt 0:00:21]} Nc4 {[%emt 0:02:20]} 27. Nxc4 {[%emt 0:00:03]} bxc4 {[%emt 0:00:53]} 28. Qc3 {[%emt 0:00:51]} Qd7 {[%emt 0:01:24]} 29. Qc2 {[%emt 0:02:58]} 1/2-1/2

[Event "Austrian Youth-ch U18 Boys 2024"]
[Site "Leibnitz"]
[Date "2024.03.25"]
[Round "3.5"]
[White "Hengl, Philip"]
[Black "Miazhynski, Michael"]
[Result "1/2-1/2"]
[ECO "B12"]
[WhiteElo "2145"]
[BlackElo "2178"]
[Annotator "RC"]
[PlyCount "82"]
[EventDate "2024.03.23"]
[EventType "swiss"]
[EventCountry "AUT"]
[SourceTitle "playchess.com"]
[Source "ChessBase"]
[SourceQuality "1"]
[TimeControl "5400+30"]

1. e4 {[%emt 0:00:03]} c6 {[%emt 0:00:11]} 2. d4 {[%emt 0:00:08]} d5 {[%emt 0:00:06]} 3. e5 {[%emt 0:00:04]} Bf5 {[%emt 0:00:05]} 4. Nf3 {[%emt 0:00:06]} e6 {[%emt 0:00:07]} 5. Be2 {[%emt 0:00:03]} Nd7 {[%emt 0:00:16]} 6. O-O {[%emt 0:00:13]} a6 {[%emt 0:00:04]} 7. Be3 {[%emt 0:04:08]} h6 {[%emt 0:00:25]} 8. Nbd2 {[%emt 0:01:56]} Ne7 {[%emt 0:02:31]} 9. Nb3 {[%emt 0:11:38]} Bh7 {[%emt 0:02:42]} 10. Bd3 {[%emt 0:06:40]} Bxd3 {[%emt 0:04:30]} 11. Qxd3 {[%emt 0:00:21]} Nf5 {[%emt 0:00:12]} 12. Nfd2 {[%emt 0:12:27]} c5 {[%emt 0:06:19]} 13. dxc5 {[%emt 0:09:35]} Nxe5 {[%emt 0:01:57]} 14. Qe2 {[%emt 0:00:38]} Nc6 {[%emt 0:03:21]} 15. Rad1 {[%emt 0:04:12]} Qf6 {[%emt 0:07:08]} 16. c3 {[%emt 0:07:05]} Be7 {[%emt 0:17:01]} 17. Nf3 {[%emt 0:00:07]} O-O {[%emt 0:00:43]} 18. Bd4 {[%emt 0:03:26]} Qg6 {[%emt 0:00:40]} 19. Ne5 {[%emt 0:02:22]} Nxe5 {[%emt 0:00:22]} 20. Bxe5 {[%emt 0:00:08]} Rac8 {[%emt 0:00:32]} 21. Na5 {[%emt 0:08:15]} Rxc5 {[%emt 0:03:04]} 22. b4 {[%emt 0:00:07]} Rcc8 {[%emt 0:04:42]} 23. Nxb7 {[%emt 0:00:06]} Rc4 {[%emt 0:00:05]} 24. f3 {[%emt 0:08:31]} Bf6 {[%emt 0:06:29]} 25. Na5 {[%emt 0:00:19]} Bxe5 {[%emt 0:05:10]} 26. Nxc4 {[%emt 0:00:15]} Bxc3 {[%emt 0:00:11]} 27. Ne5 {[%emt 0:03:21]} Qg5 {[%emt 0:06:44]} 28. f4 {[%emt 0:01:22]} Qh4 {[%emt 0:01:27]} 29. g3 {[%emt 0:03:15]} Qd8 {[%emt 0:02:58]} 30. Qxa6 {[%emt 0:03:24]} Bxb4 {[%emt 0:01:06]} 31. Rc1 {[%emt 0:01:33]} Bd2 {[%emt 0:00:58]} 32. Rb1 {[%emt 0:01:55]} Be3+ {[%emt 0:09:32]} 33. Kg2 {[%emt 0:00:05]} d4 {[%emt 0:01:20]} 34. Kh3 {[%emt 0:04:02]} Bd2 {[%emt 0:06:56]} 35. Rfd1 {[%emt 0:00:40]} Bxf4 {[%emt 0:02:10]} 36. gxf4 {[%emt 0:02:33]} Qh4+ {[%emt 0:00:01]} 37. Kg2 {[%emt 0:00:01]} Qxf4 {[%emt 0:00:19]} 38. Nf3 {[%emt 0:00:37]} Ne3+ {[%emt 0:00:50]} 39. Kf2 {[%emt 0:00:01]} Ng4+ {[%emt 0:00:33]} 40. Kg2 {[%emt 0:00:01]} Ne3+ {[%emt 0:00:26]} 41. Kf2 {[%emt 0:00:01]} Ng4+ {[%emt 0:06:47]} 1/2-1/2

[Event "Austrian Youth-ch U18 Boys 2024"]
[Site "Leibnitz"]
[Date "2024.03.25"]
[Round "3.6"]
[White "Kienboeck, Benjamin"]
[Black "Karner, Daniel"]
[Result "1-0"]
[ECO "B12"]
[WhiteElo "2219"]
[BlackElo "1935"]
[Annotator "RC"]
[PlyCount "99"]
[EventDate "2024.03.23"]
[EventType "swiss"]
[EventCountry "AUT"]
[SourceTitle "playchess.com"]
[Source "ChessBase"]
[SourceQuality "1"]
[TimeControl "5400+30"]

1. e4 {[%emt 0:00:03]} c6 {[%emt 0:00:07]} 2. d4 {[%emt 0:00:06]} d5 {[%emt 0:00:09]} 3. e5 {[%emt 0:00:08]} Bf5 {[%emt 0:00:17]} 4. h4 {[%emt 0:00:11]} h5 {[%emt 0:00:27]} 5. c4 {[%emt 0:00:08]} e6 {[%emt 0:02:11]} 6. Nc3 {[%emt 0:00:25]} Ne7 {[%emt 0:01:02]} 7. Nge2 {[%emt 0:00:44]} Nd7 {[%emt 0:00:40]} 8. Ng3 {[%emt 0:00:13]} Bg6 {[%emt 0:00:39]} 9. Be3 {[%emt 0:00:20]} Qc7 {[%emt 0:10:02]} 10. Rc1 {[%emt 0:01:22]} dxc4 {[%emt 0:06:16]} 11. Bxc4 {[%emt 0:00:17]} O-O-O {[%emt 0:00:11]} 12. Qe2 {[%emt 0:00:41]} Nb6 {[%emt 0:03:21]} 13. Bb3 {[%emt 0:15:20]} Kb8 {[%emt 0:02:21]} 14. O-O {[%emt 0:01:20]} Nf5 {[%emt 0:01:31]} 15. Nxf5 {[%emt 0:02:28]} Bxf5 {[%emt 0:00:09]} 16. Rfd1 {[%emt 0:09:08]} Qd7 {[%emt 0:03:53]} 17. a4 {[%emt 0:06:30]} Be7 {[%emt 0:12:02]} 18. a5 {[%emt 0:01:58]} Nd5 {[%emt 0:00:16]} 19. a6 {[%emt 0:01:14]} b6 {[%emt 0:02:22]} 20. Ba4 {[%emt 0:03:22]} Rc8 {[%emt 0:04:48]} 21. Bg5 {[%emt 0:03:44]} Bxg5 {[%emt 0:08:40]} 22. hxg5 {[%emt 0:00:17]} g6 {[%emt 0:00:34]} 23. Rd2 {[%emt 0:14:22]} Qe7 {[%emt 0:06:08]} 24. Ne4 {[%emt 0:14:17]} Bxe4 {[%emt 0:08:46]} 25. Qxe4 {[%emt 0:00:08]} Qb4 {[%emt 0:00:18]} 26. Qc2 {[%emt 0:00:38]} c5 {[%emt 0:00:26]} 27. Qd1 {[%emt 0:03:06]} c4 {[%emt 0:08:00]} 28. Bc2 {[%emt 0:03:36]} c3 {[%emt 0:09:21]} 29. bxc3 {[%emt 0:00:20]} Nxc3 {[%emt 0:01:28]} 30. Qf3 {[%emt 0:00:24]} Nd5 {[%emt 0:00:09]} 31. Rdd1 {[%emt 0:00:52]} Qe7 {[%emt 0:01:28]} 32. Bb3 {[%emt 0:02:56]} Qd7 {[%emt 0:01:52]} 33. Bxd5 {[%emt 0:02:40]} exd5 {[%emt 0:00:11]} 34. Qf4 {[%emt 0:03:00]} Qe6 {[%emt 0:00:15]} 35. Qf3 {[%emt 0:01:35]} Rxc1 {[%emt 0:01:06]} 36. Rxc1 {[%emt 0:00:06]} Rc8 {[%emt 0:00:03]} 37. Rxc8+ {[%emt 0:00:34]} Kxc8 {[%emt 0:00:14]} 38. Qa3 {[%emt 0:00:52]} Kd8 {[%emt 0:06:25]} 39. Qf8+ {[%emt 0:01:28]} Qe8 {[%emt 0:00:04]} 40. Qd6+ {[%emt 0:00:12]} Qd7 {[%emt 0:00:05]} 41. Qf6+ {[%emt 0:01:20]} Qe7 {[%emt 0:00:45]} 42. Qh8+ {[%emt 0:00:27]} Qe8 {[%emt 0:00:04]} 43. Qg7 {[%emt 0:00:33]} Qe7 {[%emt 0:00:52]} 44. g3 {[%emt 0:00:50]} Qe6 {[%emt 0:00:16]} 45. Qf8+ {[%emt 0:00:43]} Qe8 {[%emt 0:00:04]} 46. Qd6+ {[%emt 0:00:13]} Qd7 {[%emt 0:00:05]} 47. Qb8+ {[%emt 0:00:05]} Ke7 {[%emt 0:00:04]} 48. Kg2 {[%emt 0:02:02]} h4 {[%emt 0:02:11]} 49. e6 {[%emt 0:00:13]} fxe6 {[%emt 0:01:14]} 50. gxh4 {[%emt 0:00:14]} 1-0

[Event "Austrian Youth-ch U18 Boys 2024"]
[Site "Leibnitz"]
[Date "2024.03.25"]
[Round "3.7"]
[White "Ernst, Robert"]
[Black "Schilcher, Elias"]
[Result "1-0"]
[ECO "D36"]
[WhiteElo "2332"]
[BlackElo "1790"]
[Annotator "RC"]
[PlyCount "39"]
[EventDate "2024.03.23"]
[EventType "swiss"]
[EventCountry "AUT"]
[SourceTitle "playchess.com"]
[Source "ChessBase"]
[SourceQuality "1"]
[TimeControl "5400+30"]

1. d4 {[%emt 0:00:03]} d5 {[%emt 0:00:03]} 2. c4 {[%emt 0:00:10]} e6 {[%emt 0:00:04]} 3. Nc3 {[%emt 0:00:07]} Nf6 {[%emt 0:00:05]} 4. cxd5 {[%emt 0:00:07]} exd5 {[%emt 0:00:15]} 5. Bg5 {[%emt 0:00:09]} c6 {[%emt 0:04:02]} 6. e3 {[%emt 0:00:31]} h6 {[%emt 0:02:34]} 7. Bh4 {[%emt 0:00:11]} Nbd7 {[%emt 0:02:44]} 8. Bd3 {[%emt 0:01:08]} Be7 {[%emt 0:01:57]} 9. Qc2 {[%emt 0:00:46]} Ng4 {[%emt 0:07:58]} 10. Bg3 {[%emt 0:03:45]} Bh4 {[%emt 0:03:37]} 11. Bxh4 {[%emt 0:15:32]} Qxh4 {[%emt 0:03:16]} 12. h3 {[%emt 0:01:17]} Nde5 {[%emt 0:36:14]} 13. dxe5 {[%emt 0:02:21]} Nxe3 {[%emt 0:00:12]} 14. Qd2 {[%emt 0:05:18]} Nxg2+ {[%emt 0:01:06]} 15. Kd1 {[%emt 0:03:38]} d4 {[%emt 0:13:34]} 16. Ne4 {[%emt 0:01:40]} Bg4+ {[%emt 0:02:58]} 17. Kc2 {[%emt 0:01:33]} O-O {[%emt 0:01:16]} 18. Rh2 {[%emt 0:02:04]} Bf5 {[%emt 0:00:51]} 19. Nf6+ {[%emt 0:08:04]} Kh8 {[%emt 0:01:07]} 20. Bxf5 {[%emt 0:01:31]} 1-0

[Event "Austrian Youth-ch U18 Boys 2024"]
[Site "Leibnitz"]
[Date "2024.03.25"]
[Round "3.8"]
[White "Pedevilla, Luis"]
[Black "Kuti, Oliver"]
[Result "0-1"]
[ECO "B23"]
[WhiteElo "1845"]
[BlackElo "2006"]
[Annotator "RC"]
[PlyCount "50"]
[EventDate "2024.03.23"]
[EventType "swiss"]
[EventCountry "AUT"]
[SourceTitle "playchess.com"]
[Source "ChessBase"]
[SourceQuality "1"]
[TimeControl "5400+30"]

1. e4 {[%emt 0:00:23]} c5 {[%emt 0:00:06]} 2. Nc3 {[%emt 0:00:06]} d6 {[%emt 0:00:06]} 3. f4 {[%emt 0:00:07]} g6 {[%emt 0:00:06]} 4. Nf3 {[%emt 0:00:06]} Bg7 {[%emt 0:00:05]} 5. Bc4 {[%emt 0:00:09]} Nc6 {[%emt 0:00:08]} 6. O-O {[%emt 0:00:15]} e6 {[%emt 0:00:09]} 7. d3 {[%emt 0:00:44]} Nge7 {[%emt 0:00:08]} 8. Qe1 {[%emt 0:00:43]} O-O {[%emt 0:00:10]} 9. Qh4 {[%emt 0:01:11]} d5 {[%emt 0:02:31]} 10. Bb3 {[%emt 0:01:07]} Nd4 {[%emt 0:03:31]} 11. g4 {[%emt 0:08:43]} Nec6 {[%emt 0:13:23]} 12. Qh3 {[%emt 0:04:09]} c4 {[%emt 0:05:00]} 13. f5 {[%emt 0:15:28]} Nxf3+ {[%emt 0:05:22]} 14. Rxf3 {[%emt 0:00:59]} cxb3 {[%emt 0:01:45]} 15. Bh6 {[%emt 0:14:22]} Ne5 {[%emt 0:12:08]} 16. Rg3 {[%emt 0:09:27]} bxc2 {[%emt 0:20:03]} 17. Rf1 {[%emt 0:20:06]} b6 {[%emt 0:18:09]} 18. Bxg7 {[%emt 0:04:43]} Kxg7 {[%emt 0:01:21]} 19. g5 {[%emt 0:00:44]} Nf3+ {[%emt 0:01:14]} 20. Kg2 {[%emt 0:05:29]} Nxg5 {[%emt 0:00:28]} 21. Qg4 {[%emt 0:01:30]} exf5 {[%emt 0:04:49]} 22. exf5 {[%emt 0:02:02]} Bxf5 {[%emt 0:00:31]} 23. Qf4 {[%emt 0:00:06]} d4 {[%emt 0:02:06]} 24. Ne2 {[%emt 0:02:42]} Qd5+ {[%emt 0:01:23]} 25. Kf2 {[%emt 0:00:31]} Nh3+ {[%emt 0:00:16]} 0-1

[Event "Austrian Youth-ch U18 Boys 2024"]
[Site "Leibnitz"]
[Date "2024.03.26"]
[Round "4.1"]
[White "Gschiel, Alexander"]
[Black "Balint, Peter"]
[Result "0-1"]
[ECO "A30"]
[WhiteElo "2336"]
[BlackElo "2345"]
[Annotator "RC"]
[PlyCount "106"]
[EventDate "2024.03.23"]
[EventType "swiss"]
[EventCountry "AUT"]
[SourceTitle "playchess.com"]
[Source "ChessBase"]
[SourceQuality "1"]
[TimeControl "5400+30"]

1. Nf3 {[%emt 0:00:03]} Nf6 {[%emt 0:00:07]} 2. c4 {[%emt 0:00:06]} c5 {[%emt 0:00:41]} 3. g3 {[%emt 0:00:41]} Nc6 {[%emt 0:00:28]} 4. Bg2 {[%emt 0:00:23]} d6 {[%emt 0:00:06]} 5. d4 {[%emt 0:01:56]} cxd4 {[%emt 0:00:13]} 6. Nxd4 {[%emt 0:00:08]} Bd7 {[%emt 0:00:04]} 7. O-O {[%emt 0:02:06]} g6 {[%emt 0:00:21]} 8. b3 {[%emt 0:03:08]} Bg7 {[%emt 0:01:29]} 9. Bb2 {[%emt 0:00:17]} Qc8 {[%emt 0:08:45]} 10. Nc3 {[%emt 0:08:20]} Bh3 {[%emt 0:10:04]} 11. Nd5 {[%emt 0:05:15]} Ne5 {[%emt 0:05:13]} 12. Nc7+ {[%emt 0:06:28]} Qxc7 {[%emt 0:00:08]} 13. Bxh3 {[%emt 0:00:05]} a6 {[%emt 0:01:47]} 14. Rc1 {[%emt 0:04:16]} O-O {[%emt 0:01:22]} 15. Qc2 {[%emt 0:01:32]} Ned7 {[%emt 0:10:10]} 16. b4 {[%emt 0:08:00]} Rac8 {[%emt 0:06:20]} 17. Qb3 {[%emt 0:03:09]} Qb8 {[%emt 0:10:52]} 18. Rc2 {[%emt 0:13:23]} Rc7 {[%emt 0:03:39]} 19. Rfc1 {[%emt 0:00:16]} Rfc8 {[%emt 0:00:45]} 20. Qe3 {[%emt 0:04:49]} e6 {[%emt 0:05:20]} 21. Nf3 {[%emt 0:06:59]} b5 {[%emt 0:03:08]} 22. Qd3 {[%emt 0:01:08]} bxc4 {[%emt 0:03:22]} 23. Rxc4 {[%emt 0:00:05]} Rxc4 {[%emt 0:00:08]} 24. Rxc4 {[%emt 0:00:05]} Rxc4 {[%emt 0:08:04]} 25. Qxc4 {[%emt 0:00:01]} d5 {[%emt 0:00:41]} 26. Qxa6 {[%emt 0:07:30]} Qxb4 {[%emt 0:00:06]} 27. Qc8+ {[%emt 0:00:38]} Nf8 {[%emt 0:03:09]} 28. Qc3 {[%emt 0:01:43]} Qb5 {[%emt 0:01:52]} 29. Nd4 {[%emt 0:01:43]} Qa6 {[%emt 0:00:10]} 30. Qa3 {[%emt 0:00:36]} Qb6 {[%emt 0:01:39]} 31. Qb3 {[%emt 0:01:38]} Qa5 {[%emt 0:00:32]} 32. Bc3 {[%emt 0:00:57]} Qa6 {[%emt 0:00:20]} 33. e3 {[%emt 0:01:49]} Ne4 {[%emt 0:00:46]} 34. Bf1 {[%emt 0:00:04]} Qa8 {[%emt 0:00:22]} 35. Bb4 {[%emt 0:01:02]} Nd7 {[%emt 0:00:22]} 36. Bb5 {[%emt 0:01:06]} Ne5 {[%emt 0:06:14]} 37. a4 {[%emt 0:03:22]} Nc4 {[%emt 0:02:30]} 38. a5 {[%emt 0:02:42]} Ned2 {[%emt 0:07:38]} 39. Qd3 {[%emt 0:03:47]} Bxd4 {[%emt 0:00:09]} 40. Bxd2 {[%emt 0:00:11]} Nxd2 {[%emt 0:00:35]} 41. exd4 {[%emt 0:02:55]} Qxa5 {[%emt 0:00:15]} 42. f3 {[%emt 0:01:02]} Nxf3+ {[%emt 0:00:27]} 43. Qxf3 {[%emt 0:00:35]} Qxb5 {[%emt 0:00:03]} 44. Qf6 {[%emt 0:00:43]} Qb1+ {[%emt 0:00:05]} 45. Kg2 {[%emt 0:00:02]} Qf5 {[%emt 0:00:05]} 46. Qd8+ {[%emt 0:00:39]} Kg7 {[%emt 0:00:04]} 47. Qb6 {[%emt 0:00:05]} e5 {[%emt 0:00:18]} 48. dxe5 {[%emt 0:00:56]} Qxe5 {[%emt 0:00:05]} 49. Qb3 {[%emt 0:01:37]} Qe2+ {[%emt 0:00:17]} 50. Kg1 {[%emt 0:00:26]} d4 {[%emt 0:00:04]} 51. Qd5 {[%emt 0:00:03]} Qe3+ {[%emt 0:00:06]} 52. Kg2 {[%emt 0:01:53]} d3 {[%emt 0:00:06]} 53. g4 {[%emt 0:00:04]} d2 {[%emt 0:00:07]} 0-1